fUSD/lending_fUSD_20251201
["ID","MTS","AMOUNT","RATE_DAILY","PERIOD"]
[395226592,1764553853399,-553.64373807,0.00016695,2]
[395226593,1764553853409,-201.93286099,0.00016695,2]
[395226594,1764553853419,-151.0,0.00016695,2]
[395226595,1764553853430,-3000.0,0.00016695,2]
[395226596,1764553853443,-642.94,0.00016695,2]
[395226597,1764553853453,-500.0,0.00016696,2]
[395226598,1764553853462,-500.0,0.00016696,2]
[395226599,1764553853473,-500.0,0.00016696,2]
[395226600,1764553853482,-500.0,0.00016696,2]
[395226601,1764553853493,-500.0,0.00016696,2]
[395226602,1764553853503,-500.0,0.00016696,2]
[395226603,1764553853514,-150.0,0.00016699,2]
[395226604,1764553853523,-1000.0,0.000167,2]
[395226605,1764553853533,-150.0,0.00016703,2]
[395226606,1764553853544,-150.0,0.00016703,2]
[395226607,1764553853554,-150.0,0.00016703,2]
[395226608,1764553853564,-150.0,0.00016706,2]
[395226609,1764553853574,-150.0,0.00016711,2]
[395226610,1764553853583,-206.00527742,0.00016712,2]
[395226611,1764553853593,-293.52544515,0.00016712,2]
[395226612,1764553853602,-151.0,0.00016713,2]
[395226613,1764553853612,-150.0,0.00016715,2]
[395226614,1764553853623,-150.0,0.00016723,2]
[395226615,1764553853632,-150.0,0.00016723,2]
[395226616,1764553853642,-150.0,0.00016724,2]
[395226617,1764553853652,-206.00527742,0.00016729,2]
[395226618,1764553853662,-293.52544515,0.00016729,2]
[395226619,1764553853671,-484.4802032,0.00016729,2]
[395226620,1764553853681,-150.0,0.00016732,2]
[395226621,1764553853692,-150.0,0.00016737,2]
[395226622,1764553853703,-150.0,0.00016741,2]
[395226623,1764553853713,-150.0,0.00016744,2]
[395226624,1764553853725,-150.0,0.00016744,2]
[395226625,1764553853739,-150.0,0.00016744,2]
[395226626,1764553853750,-150.0,0.00016744,2]
[395226627,1764553853760,-500.0,0.00016744,2]
[395226628,1764553853770,-6911.10840627,0.00016745,2]
[395226629,1764553853780,-206.00527742,0.00016746,2]
[395226630,1764553853791,-293.52544515,0.00016746,2]
[395226631,1764553853801,-150.0,0.00016747,2]
[395226632,1764553853811,-150.0,0.00016757,2]
[395226633,1764553853821,-150.0,0.00016759,2]
[395226634,1764553853832,-150.0,0.0001676,2]
[395226635,1764553853842,-206.00527742,0.00016763,2]
[395226636,1764553853853,-293.52544515,0.00016763,2]
[395226637,1764553853863,-150.0,0.00016764,2]
[395226638,1764553853874,-150.0,0.00016771,2]
[395226639,1764553853885,-1438.04,0.00016771,2]
[395226640,1764553853895,-427.55165138,0.00016772,2]
[395226641,1764553853906,-150.0,0.00016774,2]
[395226642,1764553853916,-150.0,0.00016776,2]
[395226643,1764553853926,-206.00527742,0.0001678,2]
[395226644,1764553853936,-293.52544515,0.0001678,2]
[395226645,1764553853947,-150.0,0.00016782,2]
[395226646,1764553853957,-150.0,0.00016784,2]
[395226647,1764553853968,-150.0,0.00016784,2]
[395226648,1764553853978,-3292.0,0.00016791,2]
[395226649,1764553853990,-150.0,0.00016794,2]
[395226650,1764553854000,-150.0,0.00016795,2]
[395226651,1764553854014,-206.00527742,0.00016798,2]
[395226652,1764553854025,-293.52544515,0.00016798,2]
[395226653,1764553854039,-1000.0,0.000168,5]
[395226654,1764553854049,-1000.0,0.000168,2]
[395226655,1764553854059,-150.0,0.00016803,2]
[395226656,1764553854069,-150.0,0.00016804,2]
[395226657,1764553854079,-150.0,0.00016804,2]
[395226658,1764553854090,-150.0,0.00016805,2]
[395226659,1764553854099,-500.0,0.00016806,2]
[395226660,1764553854109,-200.0,0.00016806,2]
[395226661,1764553854119,-200.0,0.00016806,2]
[395226662,1764553854129,-150.0,0.00016811,2]
[395226663,1764553854138,-206.00527742,0.00016815,2]
[395226664,1764553854148,-293.52544515,0.00016815,2]
[395226665,1764553854157,-150.0,0.00016816,2]
[395226666,1764553854168,-150.0,0.00016819,2]
[395226667,1764553854177,-5139.85628,0.0001682,2]
[395226668,1764553854187,-150.0,0.00016825,2]
[395226669,1764553854197,-150.0,0.00016825,2]
[395226670,1764553854206,-150.0,0.00016828,2]
[395226671,1764553854216,-150.0,0.00016829,2]
[395226672,1764553854225,-736.0,0.00016829,2]
[395226673,1764553854235,-206.00527742,0.00016832,2]
[395226674,1764553854244,-293.52544515,0.00016832,2]
[395226675,1764553854254,-823.0,0.00016839,2]
[395226676,1764553854264,-150.0,0.00016843,2]
[395226677,1764553854273,-150.0,0.00016845,2]
[395226678,1764553854283,-150.0,0.00016845,2]
[395226679,1764553854292,-150.0,0.00016846,2]
[395226680,1764553854302,-150.0,0.00016849,2]
[395226681,1764553854311,-206.00527742,0.00016849,2]
[395226682,1764553854321,-293.52544515,0.00016849,2]
[395226683,1764553854331,-150.0,0.0001685,2]
[395226684,1764553854340,-200.0,0.00016863,2]
[395226685,1764553854349,-200.0,0.00016864,2]
[395226686,1764553854359,-150.0,0.00016864,2]
[395226687,1764553854368,-2000.0,0.00016864,2]
[395226688,1764553854377,-200.0,0.00016864,2]
[395226689,1764553854387,-200.0,0.00016864,2]
[395226690,1764553854395,-200.0,0.00016864,2]
[395226691,1764553854404,-150.0,0.00016865,2]
[395226692,1764553854413,-150.0,0.00016865,2]
[395226693,1764553854422,-150.0,0.00016865,2]
[395226694,1764553854433,-150.0,0.00016865,2]
[395226695,1764553854446,-206.00527742,0.00016866,2]
[395226696,1764553854455,-293.52544515,0.00016866,2]
[395226697,1764553854464,-150.0,0.00016867,2]
[395226698,1764553854474,-902.0,0.00016867,2]
[395226699,1764553854484,-150.0,0.00016873,2]
[395226700,1764553854493,-831.14920069,0.00016875,2]
[395226701,1764553854502,-774.21408765,0.00016875,2]
[395226702,1764553854511,-222.64443545,0.00016879,2]
[395226703,1764553854522,-150.0,0.00016881,2]
[395226704,1764553854532,-206.00527742,0.00016883,2]
[395226705,1764553854542,-293.52544515,0.00016883,2]
[395226706,1764553854551,-150.0,0.00016885,2]
[395226707,1764553854559,-831.14920069,0.00016888,2]
[395226708,1764553854569,-774.21408765,0.00016888,2]
[395226709,1764553854578,-150.0,0.00016891,2]
[395226710,1764553854587,-25000.0,0.00016891,3]
[395226711,1764553854596,-150.0,0.00016894,2]
[395226712,1764553854606,-150.0,0.00016896,2]
[395226713,1764553854615,-11759.0,0.00016897,2]
[395226714,1764553854625,-150.0,0.00016899,2]
[395226715,1764553854635,-269.91867043,0.00016899,2]
[395226716,1764553854644,-166.0,0.000169,2]
[395226717,1764553854653,-25000.0,0.000169,3]
[395226718,1764553854662,-166.0,0.000169,3]
[395226719,1764553854671,-166.0,0.000169,3]
[395226720,1764553854680,-427.55165138,0.000169,3]
[395226721,1764553854689,-1310.85278819,0.000169,2]
[395226722,1764553854698,-301.25896115,0.000169,3]
[395226723,1764553854707,-428.54,0.000169,2]
[395226724,1764553854716,-151.0,0.000169,2]
[395226725,1764553854726,-38395.38500068,0.000169,2]
[395226726,1764553854736,-1006.36873465,0.000169,2]
[395226727,1764553854746,-1000.0,0.000169,2]
[395226728,1764553854755,-831.14920069,0.000169,2]
[395226729,1764553854765,-1197.77496978,0.000169,2]
[395226730,1764553854774,-774.21408765,0.000169,2]
[395226731,1764553854783,-484.4802032,0.000169,2]
[395226732,1764553854792,-750.99569735,0.000169,2]
[395226733,1764553854802,-206.00527742,0.00016901,2]
[395226734,1764553854812,-293.52544515,0.00016901,2]
[395226735,1764553854821,-150.0,0.00016901,2]
[395226736,1764553854830,-150.0,0.00016905,2]
[395226737,1764553854839,-150.0,0.00016905,2]
[395226738,1764553854848,-150.0,0.00016915,2]
[395226739,1764553854858,-150.0,0.00016916,2]
[395226740,1764553854868,-206.00527742,0.00016918,2]
[395226741,1764553854877,-293.52544515,0.00016918,2]
[395226742,1764553854887,-150.0,0.00016918,2]
[395226743,1764553854896,-150.0,0.00016926,2]
[395226744,1764553854905,-150.0,0.00016926,2]
[395226745,1764553854914,-175.59,0.00016927,2]
[395226746,1764553854923,-150.0,0.00016934,2]
[395226747,1764553854932,-206.00527742,0.00016935,2]
[395226748,1764553854942,-293.52544515,0.00016935,2]
[395226749,1764553854951,-2000.0,0.00016936,2]
[395226750,1764553854960,-2000.0,0.00016936,2]
[395226751,1764553854970,-2000.0,0.00016936,2]
[395226752,1764553854979,-2000.0,0.00016936,2]
[395226753,1764553854989,-2000.0,0.00016936,2]
[395226754,1764553855002,-2000.0,0.00016936,2]
[395226755,1764553855011,-2000.0,0.00016936,2]
[395226756,1764553855020,-2000.0,0.00016936,2]
[395226757,1764553855030,-1453.256,0.00016936,2]
[395226758,1764553855040,-150.0,0.00016938,2]
[395226759,1764553855050,-1000.0,0.00016939,2]
[395226760,1764553855059,-1000.0,0.00016939,2]
[395226761,1764553855069,-1000.0,0.00016939,2]
[395226762,1764553855079,-1000.0,0.00016939,2]
[395226763,1764553855088,-1000.0,0.00016939,2]
[395226764,1764553855098,-1000.0,0.00016939,2]
[395226765,1764553855108,-1000.0,0.00016939,2]
[395226766,1764553855117,-1000.0,0.00016939,2]
[395226767,1764553855126,-1000.0,0.00016939,2]
[395226768,1764553855136,-1000.0,0.00016939,2]
[395226769,1764553855150,-1000.0,0.00016939,2]
[395226770,1764553855160,-1000.0,0.00016939,2]
[395226771,1764553855169,-1000.0,0.00016939,2]
[395226772,1764553855178,-1000.0,0.00016939,2]
[395226773,1764553855188,-1000.0,0.00016939,2]
[395226774,1764553855200,-1000.0,0.00016939,2]
[395226775,1764553855210,-1000.0,0.00016939,2]
[395226776,1764553855221,-150.0,0.0001694,2]
[395226777,1764553855237,-150.0,0.00016941,2]
[395226778,1764553855247,-192.674558,0.00016944,2]
[395226779,1764553855257,-152.028922,0.00016944,2]
[395226780,1764553855267,-151.0,0.00016944,2]
[395226781,1764553855278,-150.0,0.00016946,2]
[395226782,1764553855289,-150.0,0.00016946,2]
[395226783,1764553855300,-150.0,0.00016951,2]
[395226784,1764553855310,-206.00527742,0.00016952,2]
[395226785,1764553855320,-293.52544515,0.00016952,2]
[395226786,1764553855329,-150.0,0.00016962,2]
[395226787,1764553855338,-150.0,0.00016964,2]
[395226788,1764553855347,-1510.87265985,0.00016965,2]
[395226789,1764553855356,-150.0,0.00016966,2]
[395226790,1764553855365,-150.0,0.00016969,2]
[395226791,1764553855375,-206.00527742,0.00016969,2]
[395226792,1764553855383,-293.52544515,0.00016969,2]
[395226793,1764553855392,-151.0,0.00016971,2]
[395226794,1764553855401,-500.0,0.00016972,2]
[395226795,1764553855410,-500.0,0.00016972,2]
[395226796,1764553855419,-500.0,0.00016972,2]
[395226797,1764553855428,-500.0,0.00016972,2]
[395226798,1764553855437,-500.0,0.00016972,2]
[395226799,1764553855448,-500.0,0.00016972,2]
[395226800,1764553855457,-151.0,0.00016972,2]
[395226801,1764553855466,-161.89753625,0.00016973,2]
[395226802,1764553855476,-500.0,0.00016973,2]
[395226803,1764553855486,-317.90703626,0.00016973,2]
[395226804,1764553855495,-500.0,0.00016973,2]
[395226805,1764553855504,-162.21565025,0.00016973,2]
[395226806,1764553855512,-567.96156172,0.00016973,2]
[395226807,1764553855522,-501.48023517,0.00016973,2]
[395226808,1764553855531,-500.0,0.00016973,2]
[395226809,1764553855540,-500.0,0.00016973,2]
[395226810,1764553855550,-507.41352465,0.00016973,2]
[395226811,1764553855559,-500.87614275,0.00016973,2]
[395226812,1764553855567,-500.0,0.00016973,2]
[395226813,1764553855576,-500.0,0.00016973,2]
[395226814,1764553855586,-500.0,0.00016973,2]
[395226815,1764553855602,-500.0,0.00016973,2]
[395226816,1764553855615,-500.0,0.00016973,2]
[395226817,1764553855625,-501.31200472,0.00016973,2]
[395226818,1764553855634,-500.0,0.00016973,2]
[395226819,1764553855643,-500.0,0.00016973,2]
[395226820,1764553855653,-500.0,0.00016973,2]
[395226821,1764553855663,-500.65541908,0.00016973,2]
[395226822,1764553855672,-554.26973063,0.00016973,2]
[395226823,1764553855681,-500.0,0.00016973,2]
[395226824,1764553855690,-500.0,0.00016973,2]
[395226825,1764553855700,-500.0,0.00016973,2]
[395226826,1764553855709,-200.04721575,0.00016973,2]
[395226827,1764553855718,-500.0,0.00016973,2]
[395226828,1764553855728,-500.70700998,0.00016973,2]
[395226829,1764553855738,-500.0,0.00016973,2]
[395226830,1764553855747,-500.0,0.00016973,2]
[395226831,1764553855756,-500.0,0.00016973,2]
[395226832,1764553855766,-367.2520249,0.00016973,2]
[395226833,1764553855775,-500.0,0.00016973,2]
[395226834,1764553855785,-500.0,0.00016973,2]
[395226835,1764553855794,-166.21874782,0.00016973,2]
[395226836,1764553855804,-500.0,0.00016973,2]
[395226837,1764553855814,-500.0,0.00016973,2]
[395226838,1764553855824,-500.6916367,0.00016973,2]
[395226839,1764553855834,-500.0,0.00016973,2]
[395226840,1764553855843,-500.0,0.00016973,2]
[395226841,1764553855852,-500.0,0.00016973,2]
[395226842,1764553855861,-467.28363596,0.00016973,2]
[395226843,1764553855870,-332.16239915,0.00016973,2]
[395226844,1764553855880,-500.0,0.00016973,2]
[395226845,1764553855890,-500.0,0.00016973,2]
[395226846,1764553855901,-500.0,0.00016973,2]
[395226847,1764553855911,-500.0,0.00016973,2]
[395226848,1764553855921,-500.0,0.00016973,2]
[395226849,1764553855931,-500.0,0.00016973,2]
[395226850,1764553855940,-500.0,0.00016973,2]
[395226851,1764553855949,-500.0,0.00016973,2]
[395226852,1764553855963,-538.84258174,0.00016973,2]
[395226853,1764553855974,-500.0,0.00016973,2]
[395226854,1764553855984,-281.76890158,0.00016973,2]
[395226855,1764553855994,-500.0,0.00016973,2]
[395226856,1764553856005,-500.0,0.00016973,2]
[395226857,1764553856014,-500.0,0.00016973,2]
[395226858,1764553856024,-500.0,0.00016973,2]
[395226859,1764553856034,-500.0,0.00016973,2]
[395226860,1764553856045,-500.0,0.00016973,2]
[395226861,1764553856055,-174.05505731,0.00016973,2]
[395226862,1764553856065,-159.00300946,0.00016973,2]
[395226863,1764553856075,-166.42938508,0.00016973,2]
[395226864,1764553856085,-500.0,0.00016973,2]
[395226865,1764553856094,-500.0,0.00016973,2]
[395226866,1764553856104,-500.0,0.00016973,2]
[395226867,1764553856114,-521.55577615,0.00016973,2]
[395226868,1764553856124,-502.36440573,0.00016973,2]
[395226869,1764553856137,-500.0,0.00016973,2]
[395226870,1764553856147,-500.0,0.00016973,2]
[395226871,1764553856157,-500.0,0.00016973,2]
[395226872,1764553856167,-500.0,0.00016973,2]
[395226873,1764553856176,-500.0,0.00016973,2]
[395226874,1764553856186,-2031.0,0.00016973,2]
[395226875,1764553856196,-150.0,0.00016973,2]
[395226876,1764553856205,-150.0,0.00016973,2]
[395226877,1764553856215,-500.0,0.00016973,2]
[395226878,1764553856224,-500.0,0.00016973,2]
[395226879,1764553856234,-150.0,0.00016973,2]
[395226880,1764553856244,-150.0,0.00016973,2]
[395226881,1764553856254,-150.0,0.00016973,2]
[395226882,1764553856266,-478.0,0.00016973,2]
[395226883,1764553856276,-452.0,0.00016973,2]
[395226884,1764553856285,-500.0,0.00016973,2]
[395226885,1764553856295,-500.0,0.00016973,2]
[395226886,1764553856305,-500.0,0.00016973,2]
[395226887,1764553856314,-159.45894566,0.00016973,2]
[395226888,1764553856329,-150.0,0.00016973,2]
[395226889,1764553856340,-500.0,0.00016973,2]
[395226890,1764553856350,-500.0,0.00016973,2]
[395226891,1764553856361,-500.0,0.00016973,2]
[395226892,1764553856370,-500.0,0.00016973,2]
[395226893,1764553856379,-150.53515204,0.00016973,2]
[395226894,1764553856395,-152.32953151,0.00016973,2]
[395226895,1764553856404,-150.0,0.00016973,2]
[395226896,1764553856414,-500.0,0.00016973,2]
[395226897,1764553856424,-150.0,0.00016973,2]
[395226898,1764553856439,-1232.0,0.00016973,2]
[395226899,1764553856448,-500.0,0.00016973,2]
[395226900,1764553856458,-150.0,0.00016973,2]
[395226901,1764553856467,-500.0,0.00016973,2]
[395226902,1764553856479,-150.0,0.00016973,2]
[395226903,1764553856489,-150.0,0.00016973,2]
[395226904,1764553856499,-150.0,0.00016973,2]
[395226905,1764553856510,-150.0,0.00016973,2]
[395226906,1764553856521,-150.0,0.00016973,2]
[395226907,1764553856531,-151.0,0.00016973,2]
[395226908,1764553856540,-152.932741,0.00016973,2]
[395226909,1764553856549,-151.0,0.00016973,2]
[395226910,1764553856559,-151.0,0.00016973,2]
[395226911,1764553856569,-151.0,0.00016973,2]
[395226912,1764553856578,-275.11543,0.00016973,2]
[395226913,1764553856587,-473.6,0.00016974,2]
[395226914,1764553856597,-500.0,0.00016974,2]
[395226915,1764553856606,-500.0,0.00016974,2]
[395226916,1764553856615,-500.0,0.00016974,2]
[395226917,1764553856625,-346612.8659386,0.00016975,2]
[395226918,1764553856635,-3402.9970704,0.00016975,2]
[395226919,1764553856644,-40615.7908791,0.00016975,2]
[395226920,1764553856653,-7418.2372492,0.00016975,2]
[395226921,1764553856664,-171014.36393117,0.00016975,2]
[395226922,1764553858928,-31964.72901742,0.00016975,2]
[395226923,1764553858956,-16252.00640134,0.00016975,2]
[395226924,1764553858971,-32367.06703967,0.00016975,2]
[395226925,1764553858980,-2394.0692757,0.00016975,2]
[395226926,1764553858989,-25040.5196854,0.00016975,2]
[395226927,1764553858999,-151.0,0.00016975,2]
[395226928,1764553859009,-151.0,0.00016975,2]
[395226929,1764553859018,-7182.207827,0.00016975,2]
[395226930,1764553859027,-151.0,0.00016975,2]
[395226931,1764553859037,-151.0,0.00016975,2]
[395226932,1764553859047,-151.0,0.00016975,2]
[395226933,1764553859056,-151.0,0.00016975,2]
[395226934,1764553859065,-151.0,0.00016975,2]
[395226935,1764553859075,-151.0,0.00016975,2]
[395226936,1764553859083,-151.0,0.00016975,2]
[395226937,1764553859092,-424.116557,0.00016975,2]
[395226938,1764553859102,-424.116557,0.00016975,2]
[395226939,1764553859111,-424.116557,0.00016975,2]
[395226940,1764553859120,-151.0,0.00016975,2]
[395226941,1764553859129,-424.116557,0.00016975,2]
[395226942,1764553859139,-151.0,0.00016975,2]
[395226943,1764553859148,-909.432347,0.00016975,2]
[395226944,1764553859157,-909.432347,0.00016975,2]
[395226945,1764553859166,-909.432347,0.00016975,2]
[395226946,1764553859176,-909.432347,0.00016975,2]
[395226947,1764553859186,-2395.33149,0.00016975,2]
[395226948,1764553859196,-2395.33149,0.00016975,2]
[395226949,1764553859207,-2395.33149,0.00016975,2]
[395226950,1764553859216,-2395.33149,0.00016975,2]
[395226951,1764553859226,-151.0,0.00016975,2]
[395226952,1764553859237,-2807.656731,0.00016975,2]
[395226953,1764553859249,-2807.656731,0.00016975,2]
[395226954,1764553859259,-2807.656731,0.00016975,2]
[395226955,1764553859270,-2807.656731,0.00016975,2]
[395226956,1764553859280,-172709.5628882,0.00016975,2]
[395226957,1764553859313,-1341.69773257,0.00016975,2]
[395226958,1764553859324,-1260.0,0.00016975,2]
[395226959,1764553859335,-1118.10003,0.00016975,2]
[395226960,1764553859500,-1073.32977674,0.000159,2]
[395226961,1764553859512,-647.48227003,0.000159,2]
[395226962,1764553859521,-5352.51772997,0.00016975,2]
[395226963,1764553859535,-454.63180348,0.00016975,2]
[395226964,1764553859546,-875.74373908,0.00016975,2]
[395226965,1764553859556,-257.36019989,0.00016975,2]
[395226966,1764553859595,-7800.0,0.00016975,2]
[395226967,1764553860051,-5044.47842581,0.00013875,2]
[395226968,1764553860063,-6182.25454736,0.00013875,2]
[395226969,1764553860075,-1318.42568551,0.00013875,2]
[395226970,1764553860087,-720.75377448,0.00013875,2]
[395226971,1764553860181,-31299.71010509,0.00013875,2]
[395226972,1764553860190,-1720.81204677,0.000159,2]
[395226973,1764553860200,-15661.83,0.00016438,2]
[395226974,1764553860210,-211838.73560781,0.00016975,2]
[395226975,1764553860219,-151.0,0.00016975,2]
[395226976,1764553860228,-151.0,0.00016975,2]
[395226977,1764553860238,-173.172784,0.00016975,2]
[395226978,1764553860247,-151.0,0.00016975,2]
[395226979,1764553860256,-151.0,0.00016975,2]
[395226980,1764553860266,-153.754719,0.00016975,2]
[395226981,1764553860275,-151.0,0.00016975,2]
[395226982,1764553860285,-151.0,0.00016975,2]
[395226983,1764553860294,-32202.2619082,0.00016975,2]
[395226984,1764553860303,-151.42680159,0.00016986,2]
[395226985,1764553860313,-232.90323042,0.00016986,2]
[395226986,1764553860322,-206.00527742,0.00016986,2]
[395226987,1764553860331,-158.26611686,0.00016986,2]
[395226988,1764553860341,-156.14706084,0.00016986,2]
[395226989,1764553860351,-223.72518067,0.00016986,2]
[395226990,1764553860360,-150.21093227,0.00016986,2]
[395226991,1764553860370,-151.70922222,0.00016986,2]
[395226992,1764553860379,-150.34423708,0.00016986,2]
[395226993,1764553860389,-293.52544515,0.00016986,2]
[395226994,1764553860398,-151.30115336,0.00016986,2]
[395226995,1764553860408,-150.59045561,0.00016986,2]
[395226996,1764553860417,-150.53772447,0.00016986,2]
[395226997,1764553860427,-174.24584335,0.00016986,2]
[395226998,1764553860437,-152.23186133,0.00016986,2]
[395226999,1764553860451,-152.47309305,0.00016986,2]
[395227000,1764553860461,-600.0,0.00016986,2]
[395227001,1764553860471,-184.6672027,0.0001699,2]
[395227002,1764553860482,-500.0,0.00016991,2]
[395227003,1764553860491,-523.56363577,0.00016991,2]
[395227004,1764553860500,-529.1479714,0.00016991,2]
[395227005,1764553860510,-276.76728422,0.00016991,2]
[395227006,1764553860519,-500.0,0.00016991,2]
[395227007,1764553860528,-500.0,0.00016991,2]
[395227008,1764553860538,-500.0,0.00016991,2]
[395227009,1764553860548,-500.0,0.00016991,2]
[395227010,1764553860557,-500.0,0.00016991,2]
[395227011,1764553860566,-500.0,0.00016991,2]
[395227012,1764553860575,-294.64459156,0.00016991,2]
[395227013,1764553860585,-500.0,0.00016991,2]
[395227014,1764553860594,-500.0,0.00016991,2]
[395227015,1764553860603,-500.0,0.00016991,2]
[395227016,1764553860612,-500.0,0.00016991,2]
[395227017,1764553860621,-355.91425693,0.00016991,2]
[395227018,1764553860631,-500.0,0.00016991,2]
[395227019,1764553860641,-153.586438,0.00016992,2]
[395227020,1764553860650,-151.0,0.00016992,2]
[395227021,1764553860660,-151.0,0.00016992,2]
[395227022,1764553860669,-151.0,0.00016992,2]
[395227023,1764553860679,-204.367827,0.00016992,2]
[395227024,1764553860688,-204.367827,0.00016992,2]
[395227025,1764553860697,-204.367827,0.00016992,2]
[395227026,1764553860707,-204.367827,0.00016992,2]
[395227027,1764553860716,-151.0,0.00016992,2]
[395227028,1764553860726,-151.0,0.00016992,2]
[395227029,1764553860736,-151.0,0.00016992,2]
[395227030,1764553860747,-151.0,0.00016992,2]
[395227031,1764553860757,-151.0,0.00016992,2]
[395227032,1764553860767,-151.0,0.00016992,2]
[395227033,1764553860777,-168.692192,0.00016992,2]
[395227034,1764553860787,-151.0,0.00016992,2]
[395227035,1764553860797,-151.0,0.00016992,2]
[395227036,1764553860806,-151.0,0.00016992,2]
[395227037,1764553860816,-151.0,0.00016992,2]
[395227038,1764553860825,-151.0,0.00016992,2]
[395227039,1764553860835,-151.0,0.00016992,2]
[395227040,1764553860847,-151.0,0.00016992,2]
[395227041,1764553860856,-151.0,0.00016992,2]
[395227042,1764553860865,-151.0,0.00016992,2]
[395227043,1764553860875,-151.0,0.00016992,2]
[395227044,1764553860885,-151.0,0.00016992,2]
[395227045,1764553860895,-151.0,0.00016992,2]
[395227046,1764553860904,-151.0,0.00016992,2]
[395227047,1764553860913,-151.0,0.00016992,2]
[395227048,1764553860922,-151.0,0.00016992,2]
[395227049,1764553860932,-295.888656,0.00016992,2]
[395227050,1764553860941,-151.0,0.00016992,2]
[395227051,1764553860950,-151.0,0.00016992,2]
[395227052,1764553860960,-151.0,0.00016992,2]
[395227053,1764553860969,-156.100038,0.00016992,2]
[395227054,1764553860979,-151.0,0.00016992,2]
[395227055,1764553860989,-151.0,0.00016992,2]
[395227056,1764553860998,-151.0,0.00016992,2]
[395227057,1764553861007,-151.0,0.00016992,2]
[395227058,1764553861017,-151.0,0.00016992,2]
[395227059,1764553861026,-151.0,0.00016992,2]
[395227060,1764553861035,-151.0,0.00016992,2]
[395227061,1764553861045,-151.0,0.00016992,2]
[395227062,1764553861054,-151.0,0.00016992,2]
[395227063,1764553861064,-151.0,0.00016992,2]
[395227064,1764553861073,-151.0,0.00016992,2]
[395227065,1764553861083,-151.0,0.00016992,2]
[395227066,1764553861092,-151.0,0.00016992,2]
[395227067,1764553861102,-151.0,0.00016992,2]
[395227068,1764553861111,-151.0,0.00016992,2]
[395227069,1764553861121,-561.941987,0.00016992,2]
[395227070,1764553861130,-561.941987,0.00016992,2]
[395227071,1764553861140,-561.941987,0.00016992,2]
[395227072,1764553861149,-561.941987,0.00016992,2]
[395227073,1764553861159,-151.0,0.00016992,2]
[395227074,1764553861169,-151.0,0.00016992,2]
[395227075,1764553861178,-151.0,0.00016992,2]
[395227076,1764553861187,-151.0,0.00016992,2]
[395227077,1764553861198,-151.0,0.00016992,2]
[395227078,1764553861208,-151.0,0.00016992,2]
[395227079,1764553861218,-151.0,0.00016992,2]
[395227080,1764553861228,-151.0,0.00016992,2]
[395227081,1764553861238,-151.0,0.00016997,2]
[395227082,1764553861247,-500.0,0.00016999,2]
[395227083,1764553861256,-500.0,0.00016999,2]
[395227084,1764553861266,-632.7,0.00016999,2]
[395227085,1764553861275,-500.0,0.00016999,2]
[395227086,1764553861285,-648.69149479,0.00016999,2]
[395227087,1764553861295,-160.59315609,0.00016999,2]
[395227088,1764553861311,-300.0,0.00016999,2]
[395227089,1764553861321,-231.9921206,0.00016999,2]
[395227090,1764553861330,-364.65308814,0.00016999,2]
[395227091,1764553861341,-300.0,0.00016999,2]